bitfinex/quotes_ETHUSD_20250721
["timestamp","ask_amount","ask_price","bid_price","bid_amount"]
[1753121466960,0.8008,3786.9,3786.3,2.64109032]
[1753121466961,0.8049,3786.9,3786.3,2.64109032]
[1753121467167,0.8049,3786.9,3786.6,2.64088269]
[1753121467469,0.8049,3786.9,3786.7,4.126]
[1753121467672,0.8049,3786.9,3786.3,2.64109183]
[1753121467897,0.8049,3786.9,3786.4,6.76703105]
[1753121468105,0.8049,3786.9,3786.5,2.6409613]
[1753121468398,0.8049,3787.2,3786.7,2.64082182]
[1753121468703,0.8049,3787.2,3786.8,4.126]
[1753121468897,0.8049,3787.2,3786.1,0.4735]
[1753121469197,1.23148,3787.2,3786.3,2.64110081]
[1753121469396,1.23148,3787.2,3786.4,2.64103105]
[1753121469598,2.64054289,3787.1,3786.5,4.126]
[1753121469773,2.64061878,3787.0,3786.5,4.126]
[1753121469973,3.10151878,3787.0,3786.5,4.126]
[1753121470175,3.10151878,3787.0,3786.3,2.64107848]
[1753121470501,0.8049,3786.9,3786.4,4.126]
[1753121470705,0.8049,3786.9,3786.5,2.64091064]
[1753121470869,0.8108,3787.4,3786.6,2.64084455]
[1753121471201,2.64051604,3787.2,3786.7,4.126]
[1753121471386,3.10144717,3787.1,3786.8,4.126]
[1753121471696,0.8108,3786.9,3786.3,2.64109637]
[1753121471902,0.8108,3786.9,3786.4,4.125]
[1753121472402,1.2717,3786.9,3786.3,2.64109637]
[1753121472803,1.2717,3786.9,3786.4,4.125]
[1753121473113,3.10169495,3786.8,3786.5,4.125]
[1753121473317,0.8108,3786.6,3785.1,0.7754]
[1753121473518,0.8108,3786.5,3785.2,4.125]
[1753121473729,1.2717,3786.5,3785.3,0.02641798]
[1753121474013,1.2717,3786.5,3785.4,3.11521822]
[1753121474014,4.20206388,3786.5,3785.4,3.11521822]
[1753121474178,0.4609,3786.4,3785.5,4.125]
[1753121474382,0.4609,3786.4,3785.6,6.7665703]
[1753121474594,3.10194697,3786.4,3785.6,6.7665703]
[1753121474812,3.10194697,3786.4,3785.7,2.64150437]
[1753121475017,3.8108,3786.5,3786.1,2.64120396]
[1753121475224,0.8108,3786.5,3786.2,2.6411248]
[1753121475428,3.45041903,3787.2,3786.4,2.64103105]
[1753121475595,3.45041903,3787.2,3786.5,6.76595824]
[1753121475596,18.17654816,3787.1,3786.5,6.76595824]
[1753121475932,15.17654816,3787.1,3786.7,2.64079606]
[1753121476127,0.67654816,3787.1,3786.6,2.64086917]
[1753121476423,0.8099,3787.2,3786.6,2.64086917]
[1753121476608,15.3099,3787.2,3786.5,6.7659415]
[1753121476784,18.08237527,3787.2,3786.6,0.132]
[1753121476986,18.08237527,3787.2,3786.6,4.257]
[1753121477285,18.54937527,3787.2,3786.6,4.257]
[1753121477495,2.11917109,3787.1,3786.6,4.257]
[1753121478243,0.002,3787.3,3786.7,0.4479]
[1753121478443,0.002,3787.3,3787.1,2.64049887]
[1753121478732,0.002,3787.3,3787.1,6.76549887]
[1753121478936,0.002,3787.3,3787.1,4.125]
[1753121479098,0.002,3787.3,3787.2,4.125]
[1753121482315,0.002,3787.3,3787.2,6.76547317]
[1753121482510,0.002,3787.3,3787.2,8.70262049]
[1753121482711,0.002,3787.3,3787.2,8.83462049]
[1753121483242,0.7894,3789.5,3788.1,2.63980372]
[1753121483458,0.7894,3789.5,3788.9,2.63925147]
[1753121483606,1.1322178,3789.5,3789.0,4.142]
[1753121483803,1.1322178,3789.5,3787.9,0.7995]
[1753121483804,0.7894,3789.5,3788.6,0.4479]
[1753121484015,0.7894,3789.5,3787.9,0.7995]
[1753121484016,1.2564,3789.5,3788.7,4.141]
[1753121484225,0.7894,3789.5,3788.8,4.141]
[1753121484641,2.63914656,3789.2,3788.8,4.141]
[1753121484803,0.60674868,3789.2,3788.9,4.141]
[1753121485010,0.02,3789.9,3789.1,0.7995]
[1753121485211,0.02,3789.9,3789.2,0.4479]
[1753121485531,0.02,3789.9,3789.3,4.144]
[1753121485739,0.02,3789.9,3789.2,0.4479]
[1753121485919,0.02,3789.9,3788.7,0.4479]
[1753121486124,2.63928844,3788.9,3788.8,4.145]
[1753121486418,3.49715663,3789.8,3788.8,4.145]
[1753121486419,2.63907982,3789.2,3788.8,4.5939]
[1753121486647,2.63921879,3789.0,3788.9,0.47429288]
[1753121486829,0.467,3789.6,3788.4,0.4479]
[1753121487029,2.63949064,3788.7,3788.5,4.146]
[1753121487355,2.63942777,3788.7,3788.6,4.146]
[1753121487938,2.63956711,3788.5,3788.4,0.4479]
[1753121488134,2.63956711,3788.5,3788.4,4.5929]
[1753121488531,2.63942777,3788.7,3788.4,0.4479]
[1753121488798,2.63953395,3788.6,3788.4,0.4479]
[1753121488942,0.7666,3789.5,3788.5,4.5919]
[1753121489150,2.63930445,3788.9,3788.5,4.5919]
[1753121489346,2.63900984,3789.3,3788.6,0.4479]
[1753121489570,0.37666,3789.4,3788.7,4.149]
[1753121489785,2.63901009,3789.3,3788.8,4.148]
[1753121489941,3.0,3789.2,3788.6,0.4479]
[1753121490142,2.6390823,3789.2,3788.6,0.4479]
[1753121490384,3.7666,3789.5,3788.7,6.78640918]
[1753121490591,0.7666,3789.5,3788.7,4.147]
[1753121490749,0.64053453,3789.4,3788.7,4.17339427]
[1753121490957,0.64053453,3789.4,3788.8,0.4479]
[1753121491441,0.64053453,3789.4,3789.0,2.63917035]
[1753121491643,0.64053453,3789.4,3789.1,4.5949]
[1753121492355,3.40547331,3789.5,3789.1,4.5949]
[1753121492578,2.63895125,3789.4,3788.6,3.08734355]
[1753121492778,2.63895125,3789.4,3788.7,4.146]
[1753121492993,3.40547865,3789.5,3788.7,4.146]
[1753121493192,0.7666,3789.5,3789.0,2.77041158]
[1753121493367,0.7666,3789.5,3789.1,4.144]
[1753121493703,0.7666,3789.5,3789.1,4.5919]
[1753121494101,0.1312,3789.7,3789.1,7.23098774]
[1753121494411,0.26868,3789.7,3789.1,7.23098774]
[1753121495207,0.26868,3789.7,3789.1,7.23099593]
[1753121495610,2.90742532,3789.7,3789.1,7.23099593]
[1753121495807,0.26868,3789.7,3789.2,4.14]
[1753121496703,2.63881807,3789.6,3789.2,4.14]
[1753121496904,0.63227057,3789.6,3789.2,4.14]
[1753121497216,2.90742261,3789.7,3789.2,4.14]
[1753121497420,2.63880732,3789.6,3789.2,4.14]
[1753121497628,2.63880732,3789.6,3789.3,4.137]
[1753121497831,2.63887264,3789.5,3789.3,4.137]
[1753121497996,2.63906999,3789.3,3789.0,0.1312]
[1753121498203,0.93765526,3789.4,3789.1,4.136]
[1753121498409,0.1332,3789.4,3788.8,0.1312]
[1753121498611,2.63910774,3789.2,3788.9,4.136]
[1753121498812,0.002,3789.4,3788.9,4.135]
[1753121499025,2.77033858,3789.2,3788.5,0.1312]
[1753121499223,0.7791,3789.1,3788.6,4.135]
[1753121499383,0.7791,3789.1,3788.5,2.77071483]
[1753121499583,1.18093328,3789.1,3788.6,4.135]
[1753121500111,1.18093328,3789.1,3788.7,4.135]
[1753121500316,0.40183328,3789.1,3788.8,0.4479]
[1753121500532,0.1312,3789.2,3788.8,0.4479]
[1753121501523,0.1312,3789.2,3788.7,4.135]
[1753121502051,0.1312,3789.2,3788.7,4.5829]
[1753121502367,0.1312,3789.2,3788.7,7.22232331]
[1753121503282,0.1312,3789.2,3788.7,4.5829]
[1753121503483,0.1312,3789.2,3788.7,0.4479]
[1753121503683,0.1312,3789.2,3788.8,4.5769]
[1753121503892,0.1312,3789.2,3789.0,2.63921879]
[1753121504094,0.002,3789.4,3788.9,0.4479]
[1753121504095,0.1332,3789.4,3788.9,0.4479]
[1753121504260,0.002,3789.4,3789.0,2.63917414]
[1753121504591,0.002,3789.4,3789.1,2.63908198]
[1753121504790,0.002,3789.4,3789.2,4.129]
[1753121505488,0.002,3789.4,3789.2,4.5769]
[1753121506204,0.002,3789.4,3789.2,4.129]
[1753121507202,1.2175,3789.3,3788.2,2.63971543]
[1753121507492,2.63927217,3789.0,3788.2,2.63971543]
[1753121507791,2.63935288,3788.9,3788.3,4.127]
[1753121508493,0.7569,3788.9,3788.1,0.06775445]
[1753121508650,2.63950841,3788.6,3788.2,4.126]
[1753121508845,2.63954618,3788.6,3788.2,4.126]
[1753121509048,2.63944675,3788.7,3788.2,4.126]
[1753121510360,3.39621204,3788.9,3788.2,6.76576817]
[1753121510552,3.39621204,3788.9,3788.2,4.5812]
[1753121510893,2.63944073,3788.7,3788.2,4.5812]
[1753121511717,3.39247614,3788.2,3788.1,0.06775445]
[1753121512047,3.85307614,3788.2,3788.1,0.06775445]
[1753121512855,3.39247614,3788.2,3788.1,0.06775445]
[1753121513078,0.7527,3788.2,3788.1,0.06775445]
[1753121513480,2.63957078,3788.5,3788.1,0.06775445]
[1753121513688,2.63977614,3788.2,3788.1,0.06775445]
[1753121514068,3.85307614,3788.2,3788.1,0.06775445]
[1753121515475,3.39247614,3788.2,3788.1,0.06775445]
[1753121517274,3.85307614,3788.2,3788.1,0.06775445]
[1753121518211,3.39247614,3788.2,3788.1,0.06775445]
[1753121518354,4.48817416,3788.2,3788.1,0.06775445]
[1753121518799,4.94877416,3788.2,3788.1,0.06775445]
[1753121520802,4.48817416,3788.2,3788.1,0.06775445]
[1753121523227,4.94877416,3788.2,3788.1,0.06775445]
[1753121524081,7.94877416,3788.2,3788.1,0.06775445]
[1753121524392,12.07277416,3788.2,3788.1,0.06775445]
[1753121524725,2.64025123,3787.6,3787.3,0.001]
[1753121525176,0.132,3787.4,3787.3,0.001]
[1753121525306,0.132,3787.8,3787.3,0.7685]
[1753121525624,2.77205767,3787.8,3787.3,0.7685]
[1753121525930,0.132,3787.8,3787.3,1.2237]
[1753121526496,2.77209905,3787.8,3787.3,1.2237]
[1753121526701,2.77209905,3787.8,3787.3,0.4562]
[1753121527697,0.132,3787.8,3787.4,0.4552]
[1753121528035,0.132,3787.8,3787.5,0.4552]
[1753121528391,0.132,3787.8,3787.6,0.4552]
[1753121529503,0.132,3787.8,3787.7,3.09532461]
[1753121529721,0.1312,3788.4,3787.7,1.3735]
[1753121529921,0.1312,3788.6,3788.1,7.022938]
[1753121530088,0.1312,3788.6,3788.2,0.4552]
[1753121530282,0.1312,3788.6,3788.3,0.4552]
[1753121530501,0.1312,3788.6,3788.5,0.7863]
[1753121531036,0.1312,3788.6,3788.5,0.4552]
[1753121531841,0.1312,3788.6,3788.1,0.4552]
[1753121532045,0.1312,3788.6,3788.0,0.1312]
[1753121532334,0.1312,3788.6,3788.2,0.4552]
[1753121532845,2.63945611,3788.7,3787.9,1.288]
[1753121532994,0.1312,3788.4,3787.9,5.412]
[1753121533193,0.1312,3788.4,3787.9,0.4552]
[1753121533625,2.63954462,3788.6,3787.7,0.8328]
[1753121533626,2.63974969,3788.3,3787.7,4.124]
[1753121533842,2.77098733,3788.2,3787.5,4.256]
[1753121534056,0.1312,3788.2,3787.5,4.256]
[1753121534209,0.8247,3789.1,3787.7,0.8004]
[1753121534400,0.1312,3788.4,3788.1,2.63982963]
[1753121534600,0.1312,3788.7,3788.2,0.4552]
[1753121534798,0.1312,3788.7,3788.3,0.4552]
[1753121534998,2.63961388,3788.5,3788.3,0.4552]
[1753121535458,2.63951936,3788.6,3788.3,0.4552]
[1753121536248,0.1312,3788.7,3788.4,0.4552]
[1753121536414,0.1312,3788.7,3788.5,0.4666]
[1753121536598,2.63949743,3788.6,3788.5,0.4666]
[1753121536801,2.77064442,3788.7,3788.5,0.4666]
[1753121537130,2.77064442,3788.7,3787.9,6.76398002]
[1753121537131,6.46503373,3787.4,3786.0,0.8004]
[1753121537443,11.35176083,3787.4,3787.3,1e-08]
[1753121537809,13.41839806,3787.4,3787.3,1e-08]
[1753121538095,6.46559156,3786.6,3786.5,1e-08]
[1753121538382,10.64159156,3786.6,3786.5,1e-08]
[1753121538533,6.46559156,3786.6,3786.5,1e-08]
[1753121538727,10.64159156,3786.6,3786.5,1e-08]
[1753121538930,11.969831,3786.6,3786.5,1e-08]
[1753121539171,12.443031,3786.6,3786.5,1e-08]
[1753121539634,5.15293944,3786.6,3786.5,1e-08]
[1753121539837,7.9997,3786.6,3786.5,1e-08]
[1753121540273,10.64059156,3786.6,3786.5,1e-08]
[1753121540473,7.9997,3786.6,3786.5,1e-08]
[1753121541176,0.8247,3786.6,3786.5,1e-08]
[1753121541377,3.0,3786.7,3786.5,1e-08]
[1753121541589,4.05692629,3786.7,3786.5,1e-08]
[1753121541943,1.05692629,3786.7,3786.5,1e-08]
[1753121542888,3.69776179,3786.7,3786.5,1e-08]
[1753121543187,2.64089156,3786.6,3786.5,1e-08]
[1753121543488,6.81189156,3786.6,3786.5,1e-08]
[1753121543688,8.21017371,3786.6,3786.5,1e-08]
[1753121544083,8.68337371,3786.6,3786.5,1e-08]
[1753121544246,8.21017371,3786.6,3786.5,1e-08]
[1753121544446,5.56928215,3786.6,3786.5,1e-08]
[1753121544681,1.39828215,3786.6,3786.5,1e-08]
[1753121544845,4.03917371,3786.6,3786.5,1e-08]
[1753121546793,7.03917371,3786.6,3786.5,1e-08]
[1753121546958,11.67937371,3786.6,3786.5,1e-08]
[1753121547161,12.43007371,3786.6,3786.5,1e-08]
[1753121548575,12.98007371,3786.6,3786.5,1e-08]
[1753121548793,7.78987371,3786.6,3786.5,1e-08]
[1753121548940,11.95387371,3786.6,3786.5,1e-08]
[1753121549156,12.97707371,3786.6,3786.5,1e-08]
[1753121550067,14.56207371,3786.6,3786.5,1e-08]
[1753121550321,25.15107371,3786.6,3786.5,1e-08]
[1753121550594,20.79007371,3786.6,3786.5,1e-08]
[1753121552097,20.78907371,3786.6,3786.5,1e-08]
[1753121552933,35.28907371,3786.6,3786.5,1e-08]
[1753121555657,36.87407371,3786.6,3786.5,1e-08]
[1753121556179,36.87207371,3786.6,3786.5,1e-08]
[1753121558092,32.70807371,3786.6,3786.5,1e-08]
[1753121558268,36.86907371,3786.6,3786.5,1e-08]
[1753121560499,36.39187371,3786.6,3786.5,1e-08]
[1753121560706,34.25687371,3786.6,3786.5,1e-08]
[1753121561474,34.80687371,3786.6,3786.5,1e-08]
[1753121562507,34.81187371,3786.6,3786.5,1e-08]
[1753121562715,35.28507371,3786.6,3786.5,1e-08]
[1753121564709,35.28707371,3786.6,3786.5,1e-08]
[1753121565843,34.81387371,3786.6,3786.5,1e-08]
[1753121566906,34.80587371,3786.6,3786.5,1e-08]
[1753121567335,29.90117371,3786.6,3786.5,1e-08]
[1753121567510,24.29689156,3786.6,3786.5,0.46840001]
[1753121567906,17.502,3786.6,3786.5,0.46840001]
[1753121568239,4.155,3786.6,3786.5,0.46840001]
[1753121568442,3.002,3786.6,3786.5,0.46840001]
[1753121569097,0.002,3786.6,3786.5,3.10936131]
[1753121569327,0.002,3786.6,3786.5,4.32833744]
[1753121569510,0.134,3787.4,3787.0,2.6405534]
[1753121569700,0.134,3787.4,3786.5,0.88148575]
[1753121569701,0.134,3787.4,3787.1,0.8323]
[1753121569896,0.134,3787.4,3787.2,0.4684]
[1753121570403,0.134,3787.4,3787.3,0.4684]
[1753121573336,0.134,3787.4,3787.3,0.86253072]
[1753121573534,0.134,3787.4,3787.3,0.4684]
[1753121575137,0.134,3787.4,3787.1,0.8323]
[1753121575336,0.002,3787.4,3787.2,0.4684]
[1753121575551,0.002,3787.4,3787.1,0.8323]
[1753121575756,0.002,3787.4,3787.3,0.4684]
[1753121578262,0.134,3787.4,3787.3,0.4684]
[1753121578460,17.27434953,3787.4,3787.1,0.8323]
[1753121578640,17.14234953,3787.4,3786.9,0.4684]
[1753121578839,2.64045617,3787.3,3786.9,0.4684]
[1753121579038,14.502,3787.4,3787.0,0.4684]
[1753121579530,0.132,3787.0,3786.8,0.7894]
[1753121580058,0.132,3787.0,3786.9,0.4684]
[1753121581057,2.77261419,3787.0,3786.5,1.29850001]
[1753121581252,9.78242207,3787.3,3786.6,0.4684]
[1753121581473,0.132,3786.7,3786.6,0.4684]
[1753121586461,0.134,3786.7,3786.6,0.4684]
[1753121586891,0.134,3786.7,3786.5,1e-08]
[1753121587591,0.134,3786.7,3786.6,0.4684]
[1753121588687,0.134,3786.7,3786.5,1e-08]
[1753121588887,2.64089156,3786.6,3786.5,1e-08]
[1753121589191,0.134,3786.7,3786.5,1e-08]
[1753121589788,0.134,3786.7,3786.5,0.46840001]
[1753121589957,0.134,3786.7,3786.6,0.4684]
[1753121590589,14.634,3786.7,3786.6,0.4684]
[1753121592463,0.134,3786.7,3786.6,3.10929156]
[1753121592663,0.134,3786.7,3786.6,3.76019261]
[1753121592863,0.002,3786.7,3786.6,3.76019261]
[1753121595561,0.002,3786.7,3786.6,7.89019261]
[1753121599808,0.002,3786.7,3786.6,5.24930105]
[1753121600128,0.002,3786.7,3786.6,0.4684]
[1753121600311,0.002,3786.7,3786.5,1e-08]
[1753121600607,0.132,3786.6,3786.5,1e-08]
[1753121602121,0.132,3786.6,3786.5,0.45280001]
[1753121602935,0.002,3786.7,3786.5,0.45280001]
[1753121603332,0.134,3786.7,3786.5,4.58280001]
[1753121604900,0.134,3786.7,3786.5,4.13000001]
[1753121605493,2.64089156,3786.6,3786.5,1e-08]
[1753121605727,3.13389944,3786.7,3786.5,1e-08]
[1753121606091,2.64089156,3786.6,3786.5,1e-08]
[1753121606615,6.07279156,3786.6,3786.5,1e-08]
[1753121606787,7.37309156,3786.6,3786.5,1e-08]
[1753121606991,9.12631486,3786.6,3786.5,1e-08]
[1753121607223,23.62631486,3786.6,3786.5,1e-08]
[1753121608491,27.75631486,3786.6,3786.5,1e-08]
[1753121609858,3.0,3786.6,3786.5,1e-08]
[1753121610039,3.0,3786.6,3786.5,0.45280001]
[1753121610199,0.134,3786.7,3786.5,0.45280001]
[1753121610394,0.134,3786.7,3786.6,0.4528]
[1753121610595,0.134,3786.7,3786.6,8.04109156]
[1753121610902,0.002,3786.7,3786.6,9.81183039]
[1753121614654,0.002,3786.7,3786.6,5.68183039]
[1753121614876,0.002,3786.7,3786.6,3.91109156]
[1753121615145,0.002,3786.7,3786.6,5.3992]
[1753121615360,0.002,3786.7,3786.5,1e-08]
[1753121615514,0.132,3786.6,3786.5,1e-08]
[1753121616219,0.132,3786.6,3786.5,0.45280001]
[1753121616420,0.132,3786.6,3786.5,4.58180001]
[1753121616868,0.132,3786.6,3786.5,4.12900001]
[1753121617340,0.132,3786.6,3786.5,4.58180001]
[1753121617842,0.132,3786.6,3786.5,4.12900001]
[1753121618048,0.132,3786.6,3786.5,0.45280001]
[1753121618243,0.132,3786.6,3786.5,4.58180001]
[1753121618753,0.132,3786.6,3786.5,7.22276131]
[1753121618954,0.002,3786.7,3786.5,7.22276131]
[1753121619155,0.002,3786.7,3786.6,3.41799156]
[1753121619458,0.002,3786.7,3786.6,3.87079156]
[1753121619856,0.002,3786.7,3786.6,4.93488051]
[1753121620161,0.002,3786.7,3786.6,4.96128942]
[1753121620744,0.002,3786.7,3786.6,4.93488051]
[1753121620953,0.002,3786.7,3786.6,9.06388051]
[1753121621829,0.002,3786.7,3786.6,9.06288051]
[1753121622550,0.002,3786.7,3786.6,4.128]
[1753121622752,0.134,3786.7,3786.6,7.22169156]
[1753121623336,0.134,3786.7,3786.6,4.5808]
[1753121623552,0.134,3786.7,3786.6,7.22169156]
[1753121624275,0.134,3786.7,3786.6,4.5808]
[1753121624434,0.134,3786.7,3786.6,4.128]
[1753121626442,0.134,3786.7,3786.5,1e-08]
[1753121626781,0.134,3786.7,3786.6,4.128]
[1753121627150,2.64089156,3786.6,3786.5,1e-08]
[1753121627340,2.64089156,3786.6,3786.5,4.12800001]
[1753121627682,0.002,3786.7,3786.5,1e-08]
[1753121627839,0.002,3786.7,3786.6,4.128]
[1753121632389,0.002,3786.7,3786.5,1e-08]
[1753121632556,3.44059156,3786.6,3786.5,1e-08]
[1753121632757,4.04893173,3786.6,3786.5,1e-08]
[1753121632953,4.48793173,3786.6,3786.5,1e-08]
[1753121633278,7.48793173,3786.6,3786.5,1e-08]
[1753121633455,21.98793173,3786.6,3786.5,1e-08]
[1753121634955,0.002,3786.7,3786.5,0.46550001]
[1753121635153,0.002,3786.7,3786.6,0.4655]
[1753121635358,0.002,3786.7,3786.5,1e-08]
[1753121635359,2.77482851,3786.7,3786.5,1e-08]
[1753121635666,2.64282851,3786.7,3786.6,4.128]
[1753121635990,3.45359156,3786.6,3786.5,4.12800001]
[1753121636678,0.8127,3786.6,3786.5,4.12800001]
[1753121637079,1.15825378,3786.6,3786.5,1e-08]
[1753121637250,6.89259156,3786.6,3786.5,1e-08]
[1753121637654,21.39259156,3786.6,3786.5,1e-08]
[1753121638096,20.95359156,3786.6,3786.5,1e-08]
[1753121638810,21.39259156,3786.6,3786.5,1e-08]
[1753121641591,21.94259156,3786.6,3786.5,1e-08]
[1753121641791,24.40113729,3786.6,3786.5,1e-08]
[1753121643486,23.41213729,3786.6,3786.5,1e-08]
[1753121644716,24.40113729,3786.6,3786.5,1e-08]
[1753121647890,23.41213729,3786.6,3786.5,1e-08]
[1753121648095,23.85113729,3786.6,3786.5,1e-08]
[1753121651525,23.41213729,3786.6,3786.5,1e-08]
[1753121653358,23.85113729,3786.6,3786.5,1e-08]
[1753121654529,20.14089156,3786.6,3786.5,0.46550001]
[1753121654917,20.14089156,3786.6,3786.5,1e-08]
[1753121657557,3.0,3786.6,3786.5,1e-08]
[1753121657756,0.002,3786.7,3786.6,0.7722]
[1753121657757,0.134,3786.7,3786.6,0.7722]
[1753121657965,0.134,3786.7,3786.6,1.2023]
[1753121658118,0.134,3786.7,3786.6,1.73523]
[1753121658460,0.134,3786.7,3786.6,4.37612156]
[1753121658612,0.134,3786.7,3786.6,1.73523]
[1753121658813,0.134,3786.7,3786.6,4.37612156]
[1753121659339,0.134,3786.7,3786.6,1.73523]
[1753121659723,0.002,3786.7,3786.6,4.37612156]
[1753121659955,0.002,3786.7,3786.6,4.40253047]
[1753121660320,0.002,3786.7,3786.6,4.37612156]
[1753121660854,0.002,3786.7,3786.6,8.50312156]
[1753121663414,0.002,3786.7,3786.6,8.50212156]
[1753121663965,0.002,3786.7,3786.6,0.7722]
[1753121664267,0.002,3786.7,3786.5,4.12600001]
[1753121665660,0.002,3786.7,3786.6,4.126]
[1753121666222,0.002,3786.7,3786.6,4.5561]
[1753121666622,0.002,3786.7,3786.6,7.19699156]
[1753121666825,0.002,3786.7,3786.6,4.5561]
[1753121667653,0.002,3786.7,3786.6,7.19699156]
[1753121667848,0.002,3786.7,3786.6,8.2595719]
[1753121668252,0.002,3786.7,3786.6,9.0332719]
[1753121669529,0.002,3786.7,3786.6,7.97069156]
[1753121669726,0.002,3786.7,3786.6,4.5561]
[1753121669927,0.002,3786.7,3786.6,4.5551]
[1753121670124,0.002,3786.7,3786.6,4.125]
[1753121670352,0.134,3786.7,3786.6,4.125]
[1753121670759,2.77483181,3786.7,3786.6,4.125]
[1753121670959,0.134,3786.7,3786.6,4.125]
[1753121671263,0.134,3786.7,3786.6,4.5551]
[1753121672164,0.134,3786.7,3786.6,4.125]
[1753121672457,0.134,3786.7,3786.5,1e-08]
[1753121672662,0.134,3786.7,3786.6,4.125]
[1753121673240,0.134,3786.7,3786.6,4.5551]
[1753121674643,0.134,3786.7,3786.6,7.19599156]
[1753121675245,0.002,3786.7,3786.6,4.86159363]
[1753121675551,0.002,3786.7,3786.6,8.98659363]
[1753121675742,0.002,3786.7,3786.6,4.86159363]
[1753121675941,0.002,3786.7,3786.6,9.01300254]
[1753121676138,0.002,3786.7,3786.6,9.11859363]
[1753121678784,0.002,3786.7,3786.6,9.11759363]
[1753121680101,0.002,3786.7,3786.6,4.99359363]
[1753121680381,0.002,3786.7,3786.6,4.00989156]
[1753121680579,0.002,3786.7,3786.6,8.13389156]
[1753121681483,0.002,3786.7,3786.6,4.124]
[1753121681784,0.002,3786.7,3786.5,1e-08]
[1753121681960,0.134,3786.7,3786.6,4.124]
[1753121682384,0.4902695,3786.7,3786.6,4.124]
[1753121682586,0.4902695,3786.7,3786.5,1e-08]
[1753121682786,0.4902695,3786.7,3786.6,4.124]
[1753121682997,0.4902695,3786.7,3786.5,1e-08]
[1753121683198,0.4902695,3786.7,3786.6,4.124]
[1753121683395,0.134,3786.7,3786.6,4.124]
[1753121683962,2.77482182,3786.7,3786.6,4.124]
[1753121684460,3.20492182,3786.7,3786.5,1e-08]
[1753121684865,3.20492182,3786.7,3786.6,4.124]
[1753121685096,2.77482182,3786.7,3786.6,4.124]
[1753121685397,2.24735467,3786.7,3786.6,4.124]
[1753121685854,4.88817649,3786.7,3786.6,4.124]
[1753121686457,2.64089156,3786.6,3786.5,1e-08]
[1753121686684,2.64089156,3786.6,3786.5,4.12300001]
[1753121687086,2.24735467,3786.7,3786.5,4.12300001]
[1753121687280,0.30353547,3786.6,3786.5,4.12300001]
[1753121688096,0.30353547,3786.6,3786.5,4.12400001]
[1753121688294,2.94442703,3786.6,3786.5,4.12400001]
[1753121688701,0.30353547,3786.6,3786.5,4.12400001]
[1753121689277,0.30353547,3786.6,3786.5,1e-08]
[1753121689592,2.94442703,3786.6,3786.5,4.12300001]
[1753121690165,0.30353547,3786.6,3786.5,4.12300001]
[1753121690377,0.30353547,3786.6,3786.5,1e-08]
[1753121691402,0.134,3786.7,3786.5,0.43670001]
[1753121691711,0.002,3786.7,3786.6,3.07759156]
[1753121691870,0.002,3786.7,3786.6,2.64089156]
[1753121692070,0.002,3786.7,3786.6,3.07759156]
[1753121692324,0.002,3786.7,3786.6,3.86279156]
[1753121692503,0.002,3786.7,3786.6,5.09707694]
[1753121696721,0.002,3787.4,3787.3,2.64040345]
[1753121697009,0.002,3787.4,3787.3,7.53830345]
[1753121697173,0.002,3787.4,3787.3,7.67030345]
[1753121697369,0.002,3787.4,3787.3,8.10700345]
[1753121697572,0.002,3787.4,3787.3,8.9177038]
[1753121700236,0.002,3787.4,3787.3,8.9167038]
[1753121701622,0.002,3787.4,3787.3,4.7957038]
[1753121701830,0.002,3787.4,3787.3,0.132]
[1753121702132,0.134,3787.4,3787.3,4.121]
[1753121703541,0.134,3787.4,3786.8,3.20942445]
[1753121703743,0.134,3787.4,3786.9,6.76166308]
[1753121704254,0.134,3787.4,3786.9,4.121]
[1753121704468,0.48707386,3787.4,3786.8,0.132]
[1753121704614,2.64054289,3787.1,3786.3,0.132]
[1753121704939,2.64054289,3787.1,3786.1,3.07789216]
[1753121704940,0.132,3786.7,3786.6,4.121]
[1753121705557,3.8826,3787.2,3786.6,0.4367]
[1753121705702,0.8826,3787.2,3786.5,0.13200001]
[1753121705903,0.8826,3787.2,3786.6,2.64088903]
[1753121706553,0.8826,3787.2,3786.7,4.121]
[1753121706746,0.8826,3787.2,3786.8,4.12]
[1753121706945,0.8826,3787.2,3786.8,6.76074922]
[1753121707243,0.8826,3787.2,3786.8,4.12]
[1753121707442,0.8826,3787.2,3786.8,6.76074229]
[1753121707645,0.132,3787.2,3786.9,0.4367]
[1753121707959,0.132,3787.2,3786.9,3.07736369]
[1753121708253,0.132,3787.2,3786.8,4.12]
[1753121708443,0.132,3787.2,3787.0,0.4367]
[1753121708605,0.132,3787.2,3787.0,3.07727623]
[1753121709218,0.132,3787.2,3787.0,0.4367]
[1753121709643,0.132,3787.2,3787.0,3.07724333]
[1753121710062,0.002,3787.4,3787.3,2.64040345]
[1753121710206,0.002,3787.4,3787.3,8.00020748]
[1753121710545,0.002,3787.4,3787.3,7.97380345]
[1753121714053,0.002,3787.4,3787.3,7.19710345]
[1753121714449,0.002,3787.4,3787.3,8.38214376]
[1753121715653,0.002,3787.4,3787.3,8.38114376]
[1753121715952,0.002,3787.4,3786.7,0.8193]
[1753121716252,0.132,3787.3,3786.8,4.119]
[1753121716457,0.132,3787.3,3787.2,2.64047317]
[1753121716618,0.002,3787.4,3787.3,2.64040345]
[1753121716817,0.002,3787.4,3787.3,3.09160345]
[1753121717138,0.002,3787.4,3787.3,4.43185819]
[1753121717454,0.002,3787.4,3787.3,6.75940345]
[1753121717658,0.002,3787.4,3787.3,7.21060345]
[1753121719330,0.002,3787.4,3787.3,6.75940345]